fUSD/lending_fUSD_20241031
["ID","MTS","AMOUNT","RATE_DAILY","PERIOD"]
[341109846,1730386254343,-500.0,0.00055342,120]
[341109847,1730386254352,-500.0,0.00055342,120]
[341109848,1730386254363,-500.0,0.00055342,120]
[341109849,1730386254372,-342.8277217,0.00055342,120]
[341109850,1730386254395,-200.0,0.00048411,120]
[341109851,1730386254405,-157.1722783,0.00055342,120]
[341109852,1730386254415,-500.0,0.00055342,120]
[341109853,1730386254425,-500.0,0.00055342,120]
[341109854,1730386254434,-411.9027217,0.00055342,120]
[341109855,1730386254446,-88.0972783,0.00055342,120]
[341109856,1730386254455,-411.9104324,0.00055342,120]
[341109857,1730386254466,-88.0895676,0.00055342,120]
[341109858,1730386254476,-167.91043241,0.00055342,120]
[341109859,1730386254491,-530.25,0.00055342,120]
[341109860,1730386255429,-12.46956759,0.00055342,120]
[341109861,1730386255438,-150.32380798,0.00055342,120]
[341109862,1730386255448,-1908.02,0.00055342,120]
[341109863,1730386255457,-219.07927696,0.00055342,120]
[341109864,1730386255467,-500.0,0.00055342,120]
[341109865,1730386255477,-646.65,0.00055342,120]
[341109866,1730386255486,-500.0,0.00055342,120]
[341109867,1730386255496,-581.27,0.00055342,120]
[341109868,1730386255505,-753.15,0.00055342,120]
[341109869,1730386255515,-500.0,0.00055342,120]
[341109870,1730386255526,-500.0,0.00055342,120]
[341109871,1730386255535,-3166.22,0.00055342,120]
[341109872,1730386255545,-456.78156808,0.00055342,120]
[341109873,1730386255554,-500.0,0.00055342,120]
[341109874,1730386255564,-867.7386894,0.00055342,120]
[341109875,1730386255631,-45.2113106,0.00055342,120]
[341109876,1730386255641,-1019.03645623,0.00055342,120]
[341109877,1730386255654,-505.9,0.00055342,120]
[341109878,1730386255677,-413.51354377,0.00055342,120]
[341109879,1730386255686,-507.28,0.00055342,120]
[341109880,1730386255696,-500.0,0.00055342,120]
[341109881,1730386255705,-400.24427698,0.00055342,120]
[341109882,1730386255714,-304.08247925,0.00055342,120]
[341109883,1730386255726,-698.30752075,0.00055342,120]
[341109884,1730386255736,-901.17,0.00055342,120]
[341109885,1730386255745,-500.0,0.00055342,120]
[341109886,1730386255755,-546.67,0.00055342,120]
[341109887,1730386255768,-500.0,0.00055342,120]
[341109888,1730386255777,-500.0,0.00055342,120]
[341109889,1730386255787,-922.94,0.00055342,120]
[341109890,1730386255796,-500.0,0.00055342,120]
[341109891,1730386255806,-500.0,0.00055342,120]
[341109892,1730386255815,-92.43807925,0.00055342,120]
[341109893,1730386255827,-407.56192075,0.00055342,120]
[341109894,1730386255836,-1229.39,0.00055342,120]
[341109895,1730386255847,-500.0,0.00055342,120]
[341109896,1730386255856,-570.59,0.00055342,120]
[341109897,1730386255871,-500.0,0.00055342,120]
[341109898,1730386255880,-500.0,0.00055342,120]
[341109899,1730386255889,-805.39,0.00055342,120]
[341109900,1730386255898,-500.0,0.00055342,120]
[341109901,1730386255907,-500.0,0.00055342,120]
[341109902,1730386255916,-834.7,0.00055342,120]
[341109903,1730386255925,-500.0,0.00055342,120]
[341109904,1730386255936,-1423.9,0.00055342,120]
[341109905,1730386255946,-500.0,0.00055342,120]
[341109906,1730386255956,-500.0,0.00055342,120]
[341109907,1730386255966,-500.0,0.00055342,120]
[341109908,1730386255975,-500.0,0.00055342,120]
[341109909,1730386255985,-352.96807925,0.00055342,120]
[341109910,1730386255996,-147.03192075,0.00055342,120]
[341109911,1730386256006,-500.0,0.00055342,120]
[341109912,1730386256018,-890.13,0.00055342,120]
[341109913,1730386256027,-500.0,0.00055342,120]
[341109914,1730386256036,-500.0,0.00055342,120]
[341109915,1730386256045,-500.0,0.00055342,120]
[341109916,1730386256057,-500.0,0.00055342,120]
[341109917,1730386256069,-1314.67,0.00055342,120]
[341109918,1730386256080,-500.0,0.00055342,120]
[341109919,1730386256090,-202.24113226,0.00055342,120]
[341109920,1730386256100,-500.0,0.00055342,120]
[341109921,1730386256113,-500.0,0.00055342,120]
[341109922,1730386256122,-452.03574181,0.00055342,120]
[341109923,1730386292788,2500.0,0.0003969,2]
[341109924,1730386292860,2439.07,0.0003926,2]
[341109925,1730386303505,197.16575,0.00039799,2]
[341109926,1730386305324,202.46475,0.00039799,2]
[341109927,1730386456336,157.33,0.00015342,2]
[341109929,1730386461744,665.0,0.00044715,30]
[341109930,1730386708128,-200.0,0.00023,2]
[341109931,1730386708149,-6451.39451583,0.00023352,2]
[341109932,1730386708172,-157.33,0.00023452,2]
[341109933,1730386708194,-500.0,0.00024932,2]
[341109935,1730386961072,164.71,0.00015342,2]
[341109936,1730387153174,-329.80600915,0.00024932,2]
[341109937,1730387237264,-170.19399085,0.00024932,2]
[341109938,1730387237285,-218.38141382,0.00026886,2]
[341109939,1730387237305,-800.0,0.00026986,120]
[341109940,1730387237325,-441.35408535,0.00026986,120]
[341109941,1730387253100,-358.64591465,0.00026986,120]
[341109942,1730387253122,-400.16906811,0.00026986,120]
[341109944,1730387355097,-399.83093189,0.00026986,120]
[341109945,1730387355122,-800.0,0.00026986,120]
[341109946,1730387355143,-157.33,0.00031562,2]
[341109947,1730387355162,-159.95640073,0.0003405,5]
[341109948,1730387355182,-159.95698428,0.0003405,5]
[341109949,1730387355202,-159.95698428,0.0003405,5]
[341109950,1730387355222,-159.95698428,0.0003405,5]
[341109951,1730387355242,-284.0,0.000348,2]
[341109952,1730387355261,-464.0,0.000349,2]
[341109953,1730387355280,-943.8,0.000363,2]
[341109954,1730387355305,-5514.23,0.000363,2]
[341109955,1730387355324,-1731.66,0.000363,10]
[341109956,1730387355343,-500.0,0.000376,2]
[341109957,1730387355365,-157.33,0.00039671,2]
[341109958,1730387355392,-395.477,0.00041092,60]
[341109959,1730387355412,-1300.0,0.00041092,4]
[341109960,1730387355432,-25000.0,0.00041093,2]
[341109961,1730387355452,-6222.39,0.00041141,2]
[341109962,1730387355472,-150.0,0.00041143,2]
[341109963,1730387355492,-3101.24,0.00041201,2]
[341109964,1730387355512,-150.0,0.00041399,2]
[341109965,1730387355531,-2374.2,0.00041687,2]
[341109966,1730387355552,-1000.0,0.00043079,2]
[341109967,1730387355572,-152.0,0.0004334,3]
[341109968,1730387374852,550.0,0.00015,2]
[341109969,1730387380785,150.0,0.00041334,2]
[341109970,1730387387444,150.0,0.0004118,2]
[341109971,1730387428848,150.0,0.00041632,2]
[341110005,1730387432097,-1000.0,0.000452,2]
[341110007,1730387432107,-192.0,0.000452,2]
[341110009,1730387432116,-197.16575,0.00045846,14]
[341110011,1730387432126,-152.0,0.00045946,4]
[341110013,1730387432138,-181.99,0.00046333,120]
[341110015,1730387432148,-200.0,0.00046485,2]
[341110017,1730387432158,-150.01,0.00046522,2]
[341110019,1730387432167,-5877.15,0.00046698,2]
[341110021,1730387432176,-173.47,0.00046714,2]
[341110023,1730387432186,-158.21,0.0004672,2]
[341110025,1730387432195,-544.99086702,0.00046799,2]
[341110028,1730387432208,-41.95913298,0.00046799,2]
[341110030,1730387432217,-1208.16,0.00046867,2]
[341110032,1730387432227,-150.0,0.0004693,7]
[341110034,1730387432236,-571.0,0.00047065,2]
[341110036,1730387432245,-360.34,0.00047092,2]
[341110038,1730387432254,-157.33,0.00047781,2]
[341110040,1730387432263,-245.66845932,0.00048067,2]
[341110042,1730387432273,-500.0,0.00048199,2]
[341110044,1730387432282,-186.57,0.00048218,2]
[341110046,1730387432291,-161.37,0.00048233,2]
[341110048,1730387432301,-294.81,0.00048467,120]
[341110071,1730387432423,-262.7751,0.00048491,2]
[341110074,1730387432433,-1956.5093,0.00048491,2]
[341110077,1730387432443,-2014.2312,0.00048491,2]
[341110080,1730387432453,-1000.0,0.00048519,2]
[341110083,1730387432463,-250.0,0.00048544,120]
[341110086,1730387432472,-152.0,0.00048551,5]
[341110089,1730387432481,-799.28,0.00048637,2]
[341110092,1730387432490,-402.44,0.00048645,2]
[341110095,1730387432499,-250.0,0.00048645,120]
[341110098,1730387432509,-250.0,0.00048751,120]
[341110101,1730387432518,-834.78,0.00048763,7]
[341110104,1730387432527,-161.03,0.00048832,120]
[341110107,1730387432536,-965.5355,0.00048888,30]
[341110109,1730387432546,-1166.97,0.0004899,2]
[341110111,1730387432555,-10000.0,0.00049,4]
[341110114,1730387432565,-9025.0,0.00049,3]
[341110117,1730387432575,-600.0,0.00049015,7]
[341110120,1730387432584,-790.91,0.00049024,2]
[341110123,1730387432595,-586.95,0.00049063,2]
[341110126,1730387432604,-1500.0,0.00049315,120]
[341110129,1730387432613,-3503.06,0.0004966,7]
[341110133,1730387432623,-3903.06,0.0004966,7]
[341110136,1730387432632,-1026.75610197,0.0005,2]
[341110138,1730387432642,-2321.0,0.0005,15]
[341110142,1730387432651,-1007.54798383,0.0005,120]
[341110146,1730387432666,-2657.05275854,0.0005,120]
[341110672,1730387438063,-365.7414,0.0004848,2]
[341110689,1730387438232,-495.324,0.0004848,2]
[341110865,1730387439995,-5812.0096962,0.0004848,2]
[341110867,1730387440010,-7448.73383044,0.0004848,2]
[341110870,1730387440024,-7838.71676659,0.0004848,2]
[341110872,1730387440036,-12467.90470765,0.0004848,2]
[341110874,1730387440047,-35434.06402232,0.0004848,2]
[341110875,1730387440058,-256.18,0.0004848,2]
[341110879,1730387440100,-5265.99999998,0.0004848,2]
[341110885,1730387440148,-5369.00923119,0.0004848,2]
[341110903,1730387440315,-459.51368832,0.0004848,2]
[341110912,1730387440394,-1414.12,0.0004848,2]
[341110914,1730387440406,-564.5436389,0.0004848,2]
[341110916,1730387440417,-769.115429,0.0004848,2]
[341111077,1730387442039,150.0,0.00041959,2]
[341111143,1730387442923,-693.03460253,0.0004848,2]
[341111147,1730387443170,-1740.5203937,0.0004848,2]
[341111148,1730387443219,-11257.72914975,0.0004848,2]
[341111149,1730387443372,-45.97106476,0.0004848,2]
[341111207,1730387444414,150.0,0.00041292,2]
[341111230,1730387446106,-2455.58245458,0.0004848,2]
[341111231,1730387446118,-7076.7,0.0004848,2]
[341111232,1730387446300,-100.09062092,0.0004848,2]
[341111269,1730387446654,-7078.09,0.0004848,2]
[341111271,1730387446666,-13585.49962182,0.0004848,2]
[341111401,1730387450159,200.94075,0.00040846,14]
[341111402,1730387451110,220.983,0.00040846,14]
[341111403,1730387457115,205.6,0.00017605,2]
[341111404,1730387463584,154.02,0.00015342,2]
[341111406,1730387488661,150.0,0.00041634,2]
[341111407,1730387500416,150.0,0.00041951,2]
[341111408,1730387504692,150.0,0.00041855,2]
[341111412,1730388047759,150.0,0.00017605,2]
[341111414,1730388198369,156.55,0.00015342,2]
[341111415,1730388308585,19693.45,0.00016,2]
[341111417,1730388308614,26212.83334442,0.00016,2]
[341111418,1730388308643,1272132.53465414,0.00016,2]
[341111420,1730388330099,8081.8791565,0.000101,2]
[341111422,1730388355745,6321.61203922,0.000159,2]
[341111423,1730388356329,1050.0,6.94e-05,2]
[341111425,1730388433099,-374.26610811,0.00024932,2]
[341111426,1730388441551,-2890.19286804,0.00022,2]
[341111427,1730388450103,-1436.0446073,0.000225,2]
[341111428,1730388450124,-125.73389189,0.00024932,2]
[341111429,1730388450145,-156.91,0.00025952,2]
[341111430,1730388450167,-6641.629002,0.000325,2]
[341111431,1730388453195,-9141.08970996,0.000325,2]
[341111432,1730388453214,-6224.351253,0.0004,2]
[341111436,1730388522160,150.0,0.00022,2]
[341111437,1730388522182,150.0,0.00022,2]
[341111438,1730388522204,150.0,0.00022,2]
[341111439,1730388522226,150.0,0.00022,2]
[341111440,1730388522248,150.0,0.00022,2]
[341111441,1730388522270,103.5685068,0.00022,2]
[341111443,1730388541345,46.4314932,0.00019725,2]
[341111444,1730388541374,150.0,0.00019725,2]
[341111445,1730388541399,103.5685068,0.00019725,2]
[341111446,1730388542141,150.0,0.00021484,2]
[341111447,1730388542169,102.0,0.00021484,2]
[341111448,1730388547130,-200.0,0.00023,2]
[341111449,1730388547150,-637.08252983,0.000232,2]
[341111450,1730388547170,-44.40415541,0.0004,2]
[341111455,1730388566113,-32489.83277292,0.00041108,2]
[341111456,1730388566135,-2150.46483861,0.00041108,2]
[341111457,1730388566156,-150.0,0.00041152,2]
[341111458,1730388566177,-150.0,0.00041208,2]
[341111459,1730388566198,-316.381,0.00041208,60]
[341111460,1730388566220,-150.0,0.00041716,2]
[341111461,1730388566242,-9941.44697088,0.00042,30]
[341111462,1730388566395,-30188.07137759,0.00042345,14]
[341111485,1730388632361,-3570.12,0.00042287,2]
[341111486,1730388632398,-439.85724549,0.00042287,2]
[341111527,1730388638388,-290.95243173,0.00042287,2]
[341111528,1730388638399,-202.09540953,0.00042345,14]
[341111529,1730388638410,-1134.36410778,0.00042345,14]
[341111530,1730388638422,-3190.99998,0.00042345,14]
[341111531,1730388638433,-1567.20291921,0.00042345,14]
[341111532,1730388638740,-1707.27121811,0.00042345,14]
[341111543,1730388640242,-517.06260165,0.00042345,14]
[341111544,1730388640387,-13158.86133183,0.00042345,14]
[341111545,1730388640400,-576.67,0.00042387,2]
[341111546,1730388640414,-2999.97,0.00043,2]
[341111547,1730388640424,-3000.03,0.00043,2]
[341111548,1730388640434,-181.63817466,0.00043,7]
[341111549,1730388640446,-1374.67430406,0.000439,120]
[341111550,1730388640455,-984.07192974,0.00044,120]
[341111551,1730388640464,-268.620969,0.00044,20]
[341111552,1730388640478,-161.03,0.00044452,120]
[341111553,1730388640488,-576.67,0.00044651,2]
[341111554,1730388640497,-225.39395981,0.00044724,7]
[341111555,1730388640506,-518.64679671,0.00044724,7]
[341111556,1730388640517,-300.0,0.00044724,15]
[341111557,1730388640526,-194.74441097,0.00044724,10]
[341111558,1730388640538,-4122.48541044,0.00044724,2]
[341111559,1730388640547,-214.32304112,0.00044724,5]
[341111560,1730388640558,-1091.23281865,0.00044724,7]
[341111561,1730388640569,-695.57014796,0.00044724,14]
[341111562,1730388640578,-573.53884722,0.00044724,2]
[341111563,1730388640588,-212.24647969,0.00044724,7]
[341111564,1730388640598,-208.23300724,0.00044724,5]
[341111565,1730388640722,-1004.27089261,0.00044724,5]
[341111566,1730388640733,-157.0,0.00044884,2]
[341111567,1730388640742,-186.57,0.0004504,2]
[341111568,1730388640752,-3691.29950735,0.00045301,2]
[341111569,1730388640765,-511.89595984,0.00045301,2]
[341111570,1730388640776,-513.84499999,0.00045301,2]
[341111732,1730388646358,-41.58512314,0.00045075,2]
[341111733,1730388646522,-108.41487686,0.00045075,2]
[341111735,1730388646531,-150.0,0.00045301,2]
[341111737,1730388646540,-200.0,0.00045301,2]
[341111739,1730388646551,-6764.59527657,0.00045301,2]
[341111741,1730388646567,-925.9,0.00045301,2]
[341111744,1730388646590,-2298.17115167,0.00045301,2]
[341111747,1730388646605,-250.70636915,0.00045301,2]
[341111756,1730388646694,-8943.58673543,0.00045301,2]
[341111758,1730388646704,-254.63205,0.000457,120]
[341111760,1730388646713,-152.85,0.0004599,10]
[341111762,1730388646723,-5750.66625392,0.00046,32]
[341111764,1730388646734,-11357.0546742,0.00046,32]
[341111766,1730388646745,-1286.4177,0.00046,32]
[341111779,1730388646862,-31605.86137188,0.00046,32]
[341111781,1730388646871,-220.983,0.00046671,14]
[341111783,1730388646881,-576.67,0.00046915,2]
[341111785,1730388646891,-50000.0,0.00047,33]
[341111787,1730388646900,-481.79837513,0.00047025,10]
[341111789,1730388646910,-250.0,0.00047374,120]
[341111791,1730388646919,-150.0,0.00047391,7]
[341111793,1730388646928,-150.89,0.00047493,2]
[341111795,1730388646939,-370.58,0.00047552,120]
[341111797,1730388646948,-193.43681938,0.000477,2]
[341111799,1730388646958,-50000.0,0.00048,35]
[341111801,1730388646967,-36630.1447,0.0004838,2]
[341111802,1730388646978,-23118.3893,0.0004838,2]
[341111803,1730388646987,-61423.04702829,0.0004848,2]
[341111804,1730388646997,-2015.65270499,0.000489,15]
[341111805,1730388647007,-7238.14095096,0.00049,5]
[341111806,1730388647016,-16716.8281637,0.00049,36]
[341111807,1730388657752,244.4,0.00017605,2]
[341111808,1730388685285,238.2641,0.00039888,7]
[341111809,1730388697377,161.11,0.00015342,2]
[341111810,1730388737086,151.0,0.0003,120]
[341111811,1730388737621,151.0,0.00036658,120]
[341111812,1730388744157,186.61825,0.00035432,2]
[341111813,1730388802806,150.0,0.00024932,2]
[341111814,1730388802833,150.0,0.00024932,2]
[341111815,1730388802853,193.04784126,0.00024932,2]
[341111816,1730388802874,6.95215874,0.00024932,2]
[341111817,1730388805783,1162.6412,0.00039888,7]
[341111818,1730388899769,640.0,0.000305,2]
[341111819,1730388902877,576.0,0.000305,2]
[341111820,1730389083211,300.0,0.00019725,2]
[341111821,1730389177322,550.0,0.00015,2]
[341111822,1730389178405,600.0,0.00017,2]
[341111823,1730389179502,650.0,0.00019,2]
[341111824,1730389184466,150.33,0.00015342,2]
[341111825,1730389184688,150.33,0.000247,2]
[341111826,1730389184912,150.33,0.00034057,2]
[341111828,1730389189022,379.0,0.00044723,20]
[341111829,1730389205496,787.0,0.0003,2]
[341111830,1730389235556,938.06034388,0.00044723,120]
[341111844,1730389404347,500.0,0.00024932,2]
[341111845,1730389464011,795.0,0.00044722,30]
[341111846,1730389466250,834.0,0.0004,2]
[341111847,1730389556139,-186.61825,0.00042407,14]
[341111848,1730389556160,-20.24794209,0.00043215,2]
[341111849,1730389636159,-365.4553294,0.00043215,2]
[341111850,1730389636180,-385.70327149,0.00043228,2]
[341111851,1730389636200,-385.70327149,0.00043241,2]
[341111852,1730389636221,-151.0,0.00043315,120]
[341111853,1730389636241,-152.0,0.0004334,3]
[341111854,1730389636263,-150.33,0.00043414,2]
[341111855,1730389636290,-1401.50810686,0.00044,120]
[341111856,1730389636311,-511.52680648,0.00044692,30]
[341111857,1730389636332,-788.618363,0.00044722,20]
[341111858,1730389636353,-253.82214989,0.00045519,2]
[341111859,1730389640152,-363.95785011,0.00045519,2]
[341111860,1730389640173,-150.0,0.00045519,2]
[341111861,1730389640199,-200.0,0.00045519,2]
[341111862,1730389640221,-135.57069702,0.000457,120]
[341111863,1730389644922,150.0,0.0004,2]
[341111864,1730389650843,300.54935746,0.00044722,20]
[341111865,1730389688249,151.89,0.0004,2]
[341111866,1730389705098,164.71,0.00015342,2]
[341111869,1730389766138,-14.42930298,0.000457,120]
[341111870,1730389766158,-1760.0994,0.000459,2]
[341111871,1730389766178,-152.0,0.00045946,4]
[341111872,1730389766199,-5483.0744,0.000469,2]
[341111873,1730389766220,-150.67,0.00047263,2]
[341111874,1730389766242,-150.0,0.00047269,120]
[341111875,1730389766263,-200.0,0.00047287,2]
[341111876,1730389766285,-250.0,0.00047343,120]
[341111877,1730389766307,-201.18,0.00047452,120]
[341111878,1730389766330,-23900.0,0.00047501,2]
[341111879,1730389766351,-150.0,0.00047519,7]
[341111880,1730389766381,-161.03,0.00047558,120]
[341111881,1730389766402,-250.0,0.00047566,120]
[341111882,1730389766423,-3037.88,0.000476,7]
[341111883,1730389766444,-150.0,0.000476,120]
[341111884,1730389766465,-399.64,0.00047743,2]
[341111885,1730389766486,-617.78,0.00047782,2]
[341111886,1730389766507,-579.14,0.00047824,2]
[341111887,1730389766527,-152.4,0.00048033,2]
[341111888,1730389766548,-191.03,0.00048074,2]
[341111889,1730389766569,-1307.97135,0.00048088,30]
[341111890,1730389766590,-1000.0,0.00048091,2]
[341111891,1730389766610,-7500.492,0.00048091,30]
[341111892,1730389766636,-253.105,0.00048252,83]
[341111893,1730389766658,-152.4,0.00048273,2]
[341111894,1730389766678,-1307.97135,0.00048288,30]
[341111895,1730389766705,-421.20403316,0.00048311,2]
[341111896,1730389766727,-247.14,0.00048328,120]
[341111897,1730389766748,-170.81,0.00048362,2]
[341111898,1730389766768,-1831.45922386,0.00048388,7]
[341111913,1730389832413,-1410.34,0.00048388,7]
[341111914,1730389832425,-315.69028919,0.00048388,7]
[341111915,1730389832437,-256.15,0.00048388,7]
[341111916,1730389832498,-11779.12048695,0.00048388,7]
[341111917,1730389832507,-200.0,0.00048388,7]
[341111918,1730389832516,-1307.97135,0.00048488,30]
[341111919,1730389832526,-152.0,0.00048551,5]
[341111920,1730389832535,-322.97,0.00048632,2]
[341111921,1730389832545,-1307.97135,0.00048688,30]
[341111922,1730389832555,-279.0,0.000489,3]
[341111923,1730389832564,-6253.51,0.00048988,7]
[341111924,1730389832574,-4740.27881895,0.00048988,7]
[341111925,1730389832586,-1196.69375455,0.00048988,7]
[341111926,1730389832598,-316.5374265,0.00048988,7]
[341111927,1730389832608,-5664.2,0.00048988,7]
[341111928,1730389832617,-1138.23,0.00048988,7]
[341111929,1730389832627,-5084.03,0.00048988,7]
[341111930,1730389832637,-5921.21,0.00048988,7]
[341111931,1730389832646,-6232.55,0.00048988,7]
[341111932,1730389832655,-33283.1718363,0.00049,36]
[341111933,1730389832670,-830.93508838,0.00049,14]
[341111934,1730389832685,-2000.0,0.00049,7]
[341111935,1730389832695,-200.0,0.00049,7]
[341111936,1730389832705,-11076.3404334,0.0004902,2]
[341111937,1730389832715,-28038.3657563,0.00049054,2]
[341111938,1730389832724,-1307.97135,0.00049088,30]
[341111939,1730389832734,-167.42,0.00049195,2]
[341111940,1730389832743,-1307.97135,0.00049288,30]
[341111941,1730389832753,-10000.0,0.000493,120]
[341111942,1730389832763,-1500.0,0.000493,2]
[341111943,1730389832773,-1500.0,0.00049315,120]
[341111944,1730389832782,-166.94,0.00049354,2]
[341111945,1730389832791,-186.61825,0.00049382,14]
[341111946,1730389832801,-1307.97135,0.00049488,30]
[341111947,1730389832811,-2000.0,0.0004949,7]
[341111948,1730389832821,-200.0,0.0004949,7]
[341111949,1730389832830,-3053.2989,0.00049588,2]
[341111950,1730389832840,-2014.2312,0.00049588,2]
[341111951,1730389832849,-10361.90636854,0.000496,7]
[341111952,1730389832864,-7237.42128319,0.000496,7]
[341111954,1730389832882,-1903.08667361,0.000496,7]
[341111955,1730389832893,-1416.46696,0.000496,7]
[341111958,1730389832911,-38500.95871466,0.000496,7]
[341111960,1730389832922,-47748.63,0.000496,7]
[341111962,1730389832931,-2820.9,0.000496,7]
[341111964,1730389832940,-1307.97135,0.00049688,30]
[341111966,1730389832950,-451.05,0.0004979,10]
[341111978,1730389833064,-500.0,0.00049799,120]
[341111980,1730389833074,-500.0,0.00049799,120]
[341111982,1730389833084,-263.13793812,0.00049799,120]
[341111984,1730389833093,-1000.0,0.000498,120]
[341111986,1730389833104,-178.31466668,0.000498,120]
[341111988,1730389833114,-7533.424,0.000498,2]
[341111990,1730389833123,-310.5503,0.000498,2]
[341111992,1730389833133,-1814.0874345,0.000498,15]
[341111994,1730389833143,-323.21770128,0.000498,10]
[341111996,1730389833153,-42279.5635,0.000499,2]
[341111998,1730389833165,-11538.0,0.000499,5]
[341112000,1730389833175,-1000.0,0.000499,7]
[341112002,1730389833184,-1000.0,0.000499,7]
[341112004,1730389833194,-1000.0,0.000499,7]
[341112006,1730389833203,-1000.0,0.000499,7]
[341112008,1730389833213,-1000.0,0.000499,7]
[341112010,1730389833223,-1000.0,0.000499,7]
[341112012,1730389833233,-1000.0,0.000499,7]
[341112014,1730389833243,-1000.0,0.000499,7]
[341112016,1730389833252,-1000.0,0.000499,7]
[341112018,1730389833262,-1000.0,0.000499,7]
[341112020,1730389833271,-1000.0,0.000499,7]
[341112022,1730389833280,-481.0,0.000499,7]
[341112024,1730389833290,-151.0,0.00049973,120]
[341112026,1730389833299,-500.0,0.00049973,2]
[341112028,1730389833308,-2000.0,0.00049985,7]
[341112030,1730389833316,-200.0,0.00049985,7]
[341112032,1730389833325,-5324.7512838,0.0005,120]
[341112034,1730389833335,-200.0,0.0005,2]
[341112036,1730389833343,-354.0,0.0005,60]
[341112038,1730389833353,-200.65369435,0.0005,30]
[341112040,1730389833363,-300.00071534,0.0005,5]
[341112042,1730389833373,-1217.44882101,0.0005,7]
[341112044,1730389833383,-1313.17425848,0.0005,7]
[341112046,1730389833392,-430.33345928,0.0005,120]
[341112048,1730389833401,-150.0,0.0005,120]
[341112050,1730389833413,-5925.4703629,0.0005,38]
[341112534,1730389838385,-200.0,0.00049,36]
[341112538,1730389838394,-10403.0775,0.0005,38]
[341112548,1730389838439,-281.929,0.0005,38]
[341112567,1730389838617,-459.95770527,0.0005,38]
[341112568,1730389838628,-32929.56543183,0.0005,38]
[341112569,1730389838638,-200.0,0.0005,2]
[341112570,1730389838648,-200.0,0.0005,2]
[341112571,1730389838658,-3937.0,0.0005,16]
[341112572,1730389838668,-617.78,0.00050046,2]
[341112573,1730389838677,-22285.43,0.00050216,7]
[341112574,1730389838687,-5264.0,0.00050248,3]
[341112575,1730389838699,-2000.0,0.00050485,7]
[341112576,1730389838708,-200.0,0.00050485,7]
[341112577,1730389838718,-166.95,0.00050516,2]
[341112578,1730389838729,-1000.0,0.00050684,120]
[341112579,1730389838740,-3573.68,0.00050857,7]
[341112580,1730389838751,-987.0,0.00050891,4]
[341112581,1730389838762,-1814.08743449,0.00050978,15]
[341112582,1730389838771,-200.0,0.0005099,7]
[341112583,1730389838780,-3233.47917048,0.00051,39]
[341112584,1730389838791,-46766.52082952,0.00051,39]
[341112585,1730389838802,-150.14189894,0.00051057,28]
[341112586,1730389838813,-322.97,0.00051063,2]
[341112587,1730389838823,-152.0,0.00051157,6]
[341112588,1730389838833,-451.0,0.00051457,120]
[341112589,1730389838843,-1249.0,0.00051457,120]
[341112590,1730389838853,-260.684,0.00051457,120]
[341112591,1730389838862,-557.0,0.00051457,120]
[341112592,1730389838876,-1976.0,0.00051457,120]
[341112593,1730389838886,-850.118,0.00051457,120]
[341112594,1730389838896,-3152.527,0.00051457,120]
[341112595,1730389838906,-812.0,0.00051457,2]